bitfinex-derivatives/quotes_BNBF0:USTF0_20250709
["timestamp","ask_amount","ask_price","bid_price","bid_amount"]
[1752062391044,1.69993071,661.28,660.7,0.26323652]
[1752062391244,1.69993071,661.26,660.7,0.26323652]
[1752062391550,1.69993071,661.26,660.71,2.852]
[1752062391748,1.69993071,661.25,660.71,2.852]
[1752062392244,1.69993071,661.26,660.71,2.852]
[1752062393350,1.69993071,661.27,660.71,2.852]
[1752062393849,1.69993071,661.26,660.71,2.852]
[1752062394147,1.69993071,661.27,660.71,2.852]
[1752062396247,1.69993071,661.28,660.71,2.852]
[1752062397251,1.45215639,661.27,660.71,2.852]
[1752062397455,1.45215639,661.26,660.71,2.852]
[1752062397654,1.45215639,661.25,660.71,2.852]
[1752062397851,1.45215639,661.24,660.71,2.852]
[1752062398056,1.45215639,661.23,660.71,2.852]
[1752062398356,1.45215639,661.22,660.71,2.852]
[1752062398653,1.45215639,661.21,660.71,2.852]
[1752062398857,1.45215639,661.2,660.71,2.852]
[1752062399056,1.45215639,661.19,660.71,2.852]
[1752062399255,1.45215639,661.18,660.71,2.852]
[1752062399451,1.45215639,661.17,660.71,2.852]
[1752062399656,1.45215639,661.16,660.71,2.852]
[1752062399953,1.45215639,661.15,660.71,2.852]
[1752062400157,1.45215639,661.14,660.71,2.852]
[1752062400359,1.45215639,661.13,660.71,2.852]
[1752062400558,1.45215639,661.12,660.71,2.852]
[1752062400759,1.45215639,661.11,660.71,2.852]
[1752062400959,1.45215639,661.1,660.71,2.852]
[1752062401157,1.45215639,661.09,660.71,2.852]
[1752062401361,1.45215639,661.08,660.71,2.852]
[1752062401662,1.45215639,661.07,660.71,2.852]
[1752062401863,1.45215639,661.06,660.71,2.852]
[1752062402064,1.45215639,661.05,660.71,2.852]
[1752062402363,1.69993071,661.38,660.71,2.852]
[1752062402659,1.45173748,661.37,660.71,2.852]
[1752062402858,1.45173748,661.36,660.71,2.852]
[1752062403063,1.45173748,661.35,660.71,2.852]
[1752062403359,1.45173748,661.34,660.71,2.852]
[1752062403560,1.45173748,661.33,660.71,2.852]
[1752062403765,1.45173748,661.32,660.71,2.852]
[1752062403958,1.45173748,661.31,660.71,2.852]
[1752062404160,1.45173748,661.3,660.71,2.852]
[1752062404458,1.45173748,661.29,660.71,2.852]
[1752062404660,1.45173748,661.28,660.71,2.852]
[1752062404861,1.45173748,661.27,660.71,2.852]
[1752062405058,1.45173748,661.26,660.71,2.852]
[1752062405262,1.45173748,661.25,660.71,2.852]
[1752062405464,1.45173748,661.24,660.71,2.852]
[1752062405763,1.45173748,661.23,660.71,2.852]
[1752062406064,1.45173748,661.22,660.71,2.852]
[1752062406260,1.45173748,661.21,660.71,2.852]
[1752062406464,1.45173748,661.2,660.71,2.852]
[1752062406661,1.45173748,661.19,660.71,2.852]
[1752062406865,1.45173748,661.18,660.71,2.852]
[1752062407061,1.45173748,661.17,660.71,2.852]
[1752062407264,1.69993071,661.39,660.71,2.852]
[1752062407563,1.69993071,661.41,660.8,2.26092877]
[1752062407964,1.69993071,661.4,660.81,2.26092877]
[1752062409762,1.69993071,661.4,660.8,2.26092877]
[1752062410261,1.69993071,661.43,660.74,2.26092877]
[1752062410561,1.69993071,661.43,660.73,2.26092877]
[1752062411969,1.69993071,661.44,660.72,2.26092877]
[1752062412167,1.69993071,661.47,660.71,2.852]
[1752062412564,1.69993071,661.48,660.71,2.852]
[1752062414070,1.69993071,661.5,660.71,2.852]
[1752062416766,1.69993071,661.62,660.78,2.26092877]
[1752062416967,1.69993071,661.63,660.78,2.26092877]
[1752062417370,1.69993071,661.64,660.77,2.26092877]
[1752062419172,1.69993071,661.65,660.76,2.26092877]
[1752062419375,1.69993071,661.66,660.74,2.26092877]
[1752062420170,1.69993071,661.67,660.73,2.26092877]
[1752062421370,1.69993071,661.68,660.71,2.852]
[1752062422271,1.69993071,661.69,660.71,2.852]
[1752062423770,1.69993071,661.69,660.71,5.11292877]
[1752062424070,1.69993071,661.69,660.72,2.26092877]
[1752062424271,1.69993071,661.69,660.71,5.11292877]
[1752062424469,1.69993071,661.69,660.72,2.26092877]
[1752062425173,1.69993071,661.69,660.71,5.11292877]
[1752062425875,1.69993071,661.7,660.72,2.26092877]
[1752062427273,1.69993071,661.7,660.71,5.11292877]
[1752062429079,1.69993071,661.69,660.72,2.26092877]
[1752062429376,1.69993071,661.69,660.73,2.26092877]
[1752062429675,1.69993071,661.68,660.75,2.26092877]
[1752062431381,1.69993071,661.63,660.86,2.26092877]
[1752062431881,1.69993071,661.63,660.85,2.26092877]
[1752062432080,1.69993071,661.63,660.87,2.26092877]
[1752062432279,1.69993071,661.63,660.86,2.26092877]
[1752062432680,1.69993071,661.62,660.89,2.26092877]
[1752062433081,1.69993071,661.63,660.87,2.26092877]
[1752062433282,1.69993071,661.63,660.86,2.26092877]
[1752062434180,1.69993071,661.63,660.87,2.26092877]
[1752062434783,1.69993071,661.67,660.77,2.26092877]
[1752062435885,1.69993071,661.62,660.88,2.26092877]
[1752062436280,1.69993071,661.62,660.87,2.26092877]
[1752062436585,1.69993071,661.62,660.88,2.26092877]
[1752062437480,1.69993071,661.62,660.87,2.26092877]
[1752062437687,1.69993071,661.62,660.88,2.26092877]
[1752062438083,1.69993071,661.63,660.87,2.26092877]
[1752062438282,1.69993071,661.67,660.88,2.26092877]
[1752062439483,1.69993071,661.67,660.89,2.26092877]
[1752062439688,1.69993071,661.67,660.88,2.26092877]
[1752062439888,7.91201363,662.68,660.85,2.26092877]
[1752062439889,1.69993071,661.68,660.85,2.26092877]
[1752062440186,1.69993071,661.68,660.86,2.26092877]
[1752062440987,1.69993071,661.69,660.85,2.26092877]
[1752062441384,1.69993071,661.68,660.85,2.26092877]
[1752062441788,1.69993071,661.69,660.85,2.26092877]
[1752062441988,1.69993071,661.69,660.84,2.26092877]
[1752062442189,1.69993071,661.7,660.85,2.26092877]
[1752062443290,5.6514383,662.54,660.88,2.26092877]
[1752062443291,1.69993071,661.69,660.88,2.26092877]
[1752062444089,1.69993071,661.68,660.88,2.26092877]
[1752062444392,1.69993071,661.68,660.89,2.26092877]
[1752062447096,1.69993071,661.68,660.9,2.26092877]
[1752062447592,1.69993071,661.68,660.89,2.26092877]
[1752062448293,1.69993071,661.68,660.9,2.26092877]
[1752062448997,1.69993071,661.68,660.91,2.515]
[1752062449294,1.69993071,661.68,660.91,4.77592877]
[1752062449493,5.6514383,662.44,660.92,2.26092877]
[1752062449494,1.69993071,661.67,660.92,2.26092877]
[1752062450298,1.69993071,661.67,660.93,2.26092877]
[1752062450897,1.69993071,661.67,660.94,2.26092877]
[1752062453003,1.69993071,661.66,660.96,2.26092877]
[1752062455202,1.69993071,661.66,660.95,2.26092877]
[1752062455406,1.69993071,661.66,660.96,2.26092877]
[1752062457102,1.69993071,661.66,660.97,2.26092877]
[1752062457502,1.69993071,661.65,660.98,2.26092877]
[1752062459204,1.69993071,661.65,660.97,2.26092877]
[1752062461109,1.69993071,661.69,661.0,2.26092877]
[1752062462212,1.69993071,661.68,661.0,2.26092877]
[1752062462507,1.69993071,661.69,661.0,2.26092877]
[1752062463010,1.69993071,661.68,661.0,2.26092877]
[1752062463309,1.69993071,661.68,661.01,2.26092877]
[1752062464006,1.69993071,661.68,661.0,2.26092877]
[1752062464211,1.69993071,661.68,661.01,2.26092877]
[1752062466213,1.69993071,661.67,661.02,2.26092877]
[1752062469115,1.69993071,661.66,661.04,2.26092877]
[1752062470212,1.69993071,661.65,661.04,2.26092877]
[1752062471115,1.69993071,661.66,661.03,2.26092877]
[1752062471316,1.69993071,661.65,661.03,2.26092877]
[1752062472013,1.69993071,661.65,661.04,2.26092877]
[1752062472317,1.69993071,661.64,661.05,2.26092877]
[1752062473216,1.69993071,661.63,661.05,2.26092877]
[1752062473916,1.69993071,661.63,661.06,2.26092877]
[1752062474317,1.69993071,661.62,661.06,2.26092877]
[1752062474514,1.69993071,661.64,661.03,2.26092877]
[1752062474719,1.69993071,661.69,660.91,2.515]
[1752062475215,1.69993071,661.68,660.91,2.515]
[1752062475418,1.69993071,661.63,660.91,2.515]
[1752062476816,1.69993071,661.6,660.91,2.515]
[1752062484421,1.69993071,661.56,660.93,2.26092877]
[1752062484621,1.69993071,661.55,660.95,2.26092877]
[1752062485223,1.69993071,661.55,660.91,2.515]
[1752062485224,1.69993071,661.54,660.98,2.26092877]
[1752062485427,1.69993071,661.54,660.99,2.26092877]
[1752062485722,1.69993071,661.53,661.0,2.26092877]
[1752062488324,1.69993071,661.53,661.01,2.26092877]
[1752062489629,1.69993071,661.53,661.02,2.26092877]
[1752062490224,1.69993071,661.53,661.01,2.26092877]
[1752062492824,1.69993071,661.56,660.94,2.26092877]
[1752062493025,1.69993071,661.55,660.94,2.26092877]
[1752062493229,1.69993071,661.55,660.93,2.26092877]
[1752062493728,1.69993071,661.54,660.93,2.26092877]
[1752062494128,1.69993071,661.55,660.93,2.26092877]
[1752062495829,1.69993071,661.54,660.93,2.26092877]
[1752062496628,1.69993071,661.54,660.92,2.26092877]
[1752062497128,1.69993071,661.55,660.92,2.26092877]
[1752062497427,1.69993071,661.54,660.92,2.26092877]
[1752062497627,1.69993071,661.55,660.92,2.26092877]
[1752062498131,1.69806846,661.55,660.92,2.26092877]
[1752062500531,1.69806846,661.54,660.91,4.77592877]
[1752062500728,2.26057532,661.68,660.91,4.77592877]
[1752062501028,1.69796881,661.54,660.91,4.77592877]
[1752062501528,1.69796881,661.54,660.91,2.515]
[1752062502236,1.69796881,661.55,660.91,2.515]
[1752062502736,1.69796881,661.52,660.95,2.26092877]
[1752062504936,1.69796881,661.52,660.97,2.26092877]
[1752062505135,1.69796881,661.51,660.98,2.26092877]
[1752062505735,1.69796881,661.5,660.97,2.26092877]
[1752062507642,1.69796881,661.5,660.98,2.118]
[1752062508248,1.69796881,661.51,660.98,2.118]
[1752062509950,1.69796881,661.5,660.98,2.118]
[1752062510244,1.69796881,661.51,660.98,2.118]
[1752062513355,1.69796881,661.47,660.98,2.118]
[1752062513956,1.69796881,661.48,660.98,2.118]
[1752062514858,1.69796881,661.54,660.98,2.118]
[1752062517262,1.69796881,661.55,660.98,2.118]
[1752062518460,3.39086298,661.87,660.98,2.118]
[1752062518665,1.74507773,662.52,660.98,2.118]
[1752062518963,1.74507773,662.51,660.98,2.118]
[1752062519158,1.74507773,662.5,660.98,2.118]
[1752062519362,1.74507773,662.49,660.98,2.118]
[1752062519558,2.26302514,661.62,660.98,2.118]
[1752062519760,1.69726885,661.46,660.98,2.118]
[1752062520262,1.69726885,661.47,660.98,2.118]
[1752062520964,1.69726885,661.45,660.98,2.118]
[1752062521364,1.69726885,661.46,660.98,2.118]
[1752062521658,5.65756285,662.4,660.98,2.118]
[1752062521659,1.69726885,661.43,660.98,2.118]
[1752062523167,1.69726885,661.44,660.98,2.118]
[1752062524767,1.69726885,661.43,660.98,2.118]
[1752062526063,1.69726885,661.44,660.98,2.118]
[1752062529265,1.69726885,661.45,660.98,2.118]
[1752062529868,1.69726885,661.44,660.98,2.118]
[1752062530069,1.69726885,661.43,660.98,2.118]
[1752062530270,1.69726885,661.44,660.98,2.118]
[1752062530569,1.69726885,661.43,660.98,2.118]
[1752062534168,1.69726885,661.42,660.98,2.118]
[1752062535571,1.69726885,661.43,660.98,2.118]
[1752062536470,1.69610661,661.43,660.98,2.118]
[1752062537873,5.65756285,662.11,660.98,2.118]
[1752062537874,1.69610661,661.44,660.98,2.118]
[1752062545476,1.69610661,661.43,660.98,2.118]
[1752062550180,1.69610661,661.42,660.98,2.118]
[1752062555780,1.69610661,661.42,660.83,2.26057046]
[1752062557882,1.69610661,661.42,660.84,2.26057046]
[1752062558383,1.69610661,661.43,660.82,2.26057046]
[1752062559188,1.69610661,661.42,660.83,2.26057046]
[1752062559388,1.69610661,661.42,660.83,4.08657046]
[1752062560688,1.69610661,661.42,660.83,1.826]
[1752062560989,1.69610661,661.43,660.83,1.826]
[1752062561288,1.69610661,661.42,660.83,4.08657046]
[1752062561487,1.69610661,661.56,660.83,1.826]
[1752062561791,1.69610661,661.66,660.83,1.826]
[1752062563190,1.69610661,661.62,660.83,1.826]
[1752062563393,1.69610661,661.6,660.83,1.826]
[1752062563594,1.69610661,661.54,660.9,2.26057046]
[1752062564088,1.69610661,661.55,660.9,2.26057046]
[1752062564294,1.69610661,661.54,660.9,2.26057046]
[1752062564590,1.69610661,661.55,660.91,2.26057046]
[1752062564789,1.69610661,661.55,660.9,2.26057046]
[1752062566194,1.69610661,661.56,660.9,2.26057046]
[1752062570095,1.69610661,661.55,660.89,2.26057046]
[1752062571796,1.69610661,661.56,660.9,2.26057046]
[1752062572501,1.69610661,661.54,660.91,2.26057046]
[1752062573897,1.69610661,661.54,660.9,2.26057046]
[1752062574104,1.69610661,661.6,660.83,1.826]
[1752062578307,1.69610661,661.67,660.85,2.26057046]
[1752062579406,1.69610661,661.67,660.84,2.26057046]
[1752062579608,1.69610661,661.67,660.85,2.26057046]
[1752062581515,1.69610661,661.68,660.84,2.26057046]
[1752062582310,1.69610661,661.68,660.83,2.26057046]
[1752062582510,1.69610661,661.68,660.97,2.26057046]
[1752062582710,1.69610661,661.63,660.97,2.26057046]
[1752062584320,1.69610661,661.63,660.98,2.141]
[1752062585214,1.69610661,661.7,661.02,2.26057046]
[1752062587219,1.69610661,661.69,661.04,2.26057046]
[1752062587415,1.69610661,661.7,661.04,2.26057046]
[1752062588421,1.69394848,661.7,661.04,2.26057046]
[1752062589320,1.69394848,661.71,661.03,2.26057046]
[1752062591323,1.69394848,661.71,661.02,2.26057046]
[1752062593317,1.69394848,661.71,661.01,2.26057046]
[1752062594224,1.69310403,661.71,661.01,2.26057046]
[1752062594423,1.69310403,661.72,661.01,2.26057046]
[1752062594821,1.69310403,661.79,661.08,2.26057046]
[1752062595022,1.69310403,661.89,660.98,2.141]
[1752062595224,1.69310403,661.9,660.98,2.141]
[1752062595419,1.69310403,661.89,660.98,2.141]
[1752062595624,1.69310403,661.9,660.98,2.141]
[1752062598429,1.69310403,661.91,660.98,2.141]
[1752062598727,1.69310403,661.9,660.98,2.141]
[1752062599227,1.69310403,661.91,660.98,2.141]
[1752062599825,1.69310403,661.9,660.98,2.141]
[1752062604733,1.69310403,661.87,660.99,2.26057046]
[1752062605331,1.69310403,661.88,660.98,4.40157046]
[1752062605528,1.69310403,661.88,660.98,2.141]
[1752062606333,1.69310403,661.89,660.98,2.141]
[1752062607129,1.69310403,661.88,660.98,2.141]
[1752062610134,1.69310403,661.88,660.98,4.40157046]
[1752062610332,1.69310403,661.88,660.98,2.141]
[1752062611132,1.69310403,661.87,660.98,4.40157046]
[1752062611335,1.69310403,661.88,660.98,4.40157046]
[1752062611632,1.69310403,661.88,660.98,2.141]
[1752062611835,1.69310403,661.87,660.98,4.40157046]
[1752062612531,1.69310403,661.88,660.98,4.40157046]
[1752062613230,1.69310403,661.88,660.99,2.26057046]
[1752062613733,2.26302514,662.01,660.98,2.141]
[1752062613734,1.69310403,661.9,660.98,2.141]
[1752062614136,1.69310403,661.89,660.98,2.141]
[1752062614336,1.69310403,661.9,660.98,2.141]
[1752062614537,1.69310403,661.91,660.98,2.141]
[1752062614734,1.69310403,661.92,660.98,2.141]
[1752062614932,1.69310403,661.91,660.98,4.40157046]
[1752062615438,1.69310403,661.94,661.01,2.26057046]
[1752062615632,1.69310403,662.0,661.07,2.26057046]
[1752062615835,1.69310403,662.0,661.08,2.26057046]
[1752062616336,1.69310403,662.0,661.07,2.26057046]
[1752062616537,1.69310403,662.0,661.08,2.26057046]
[1752062616739,1.69310403,662.0,661.09,2.26057046]
[1752062616937,1.69310403,661.99,661.1,2.26057046]
[1752062617137,1.69310403,661.99,661.11,2.26057046]
[1752062617338,1.69310403,661.99,661.1,2.26057046]
[1752062617940,1.69310403,662.0,661.09,2.26057046]
[1752062618340,1.69310403,662.0,661.1,2.26057046]
[1752062618535,1.69310403,662.0,660.98,2.141]
[1752062618536,1.69310403,662.0,661.09,2.26057046]
[1752062619136,1.69310403,662.0,661.1,2.26057046]
[1752062619341,1.69310403,662.0,661.09,2.26057046]
[1752062620138,1.69310403,662.0,661.1,2.26057046]
[1752062620339,1.69310403,662.0,661.09,2.26057046]
[1752062621144,1.69310403,662.0,661.1,2.26057046]
[1752062621343,1.69310403,662.0,661.09,2.26057046]
[1752062622240,1.69310403,662.0,660.98,2.141]
[1752062622241,1.69310403,662.0,661.08,2.26057046]
[1752062623139,1.69310403,662.0,661.09,2.26057046]
[1752062623346,1.69310403,662.0,661.08,2.26057046]
[1752062624144,1.69310403,661.99,661.11,2.26057046]
[1752062624445,1.69310403,661.99,660.98,5.53185569]
[1752062624446,1.69310403,661.99,661.1,2.26057046]
[1752062624742,1.69310403,662.06,660.98,2.141]
[1752062628444,1.69310403,662.06,660.95,2.26057046]
[1752062628445,1.69310403,662.06,660.94,2.26057046]
[1752062629149,1.69310403,662.06,660.95,2.26057046]
[1752062630245,1.69310403,662.05,660.95,2.26057046]
[1752062630444,1.69310403,662.06,660.95,2.26057046]
[1752062630748,1.69310403,662.06,660.96,2.469]
[1752062631249,1.69310403,662.05,660.96,2.469]
[1752062632146,1.69310403,662.05,660.96,4.72957046]
[1752062633152,1.69310403,662.05,660.97,2.26057046]
[1752062633953,1.69310403,662.05,660.96,4.72957046]
[1752062634153,1.69310403,662.05,660.97,2.26057046]
[1752062634348,0.97828444,662.23,660.97,2.26057046]
[1752062634556,1.69070692,662.05,660.97,2.26057046]
[1752062634755,1.69070692,662.01,661.06,2.26057046]
[1752062634952,1.69070692,662.01,661.07,2.26057046]
[1752062635152,1.69070692,661.98,661.14,2.26057046]
[1752062635653,1.69070692,661.97,661.16,2.26057046]
[1752062636154,1.69070692,661.97,661.17,2.26057046]
[1752062637250,1.69070692,661.97,661.18,2.26057046]
[1752062638156,1.69070692,661.96,661.19,2.26057046]
[1752062638756,1.69070692,661.97,661.19,2.26057046]
[1752062639056,1.69070692,661.97,661.18,2.26057046]
[1752062639255,1.69070692,661.97,661.19,2.26057046]
[1752062640854,1.69070692,661.96,661.2,2.26057046]
[1752062641258,1.69070692,661.96,661.19,2.26057046]
[1752062641458,1.69070692,661.96,661.2,2.26057046]
[1752062642363,1.69070692,661.96,661.21,2.26057046]
[1752062642863,1.69070692,661.97,661.2,2.26057046]
[1752062643264,1.69070692,661.96,661.21,2.26057046]
[1752062643668,1.69070692,661.96,661.2,2.26057046]
[1752062644065,1.69070692,661.97,661.19,2.26057046]
[1752062644366,1.69070692,661.97,661.2,2.26057046]
[1752062644965,1.69070692,661.97,661.21,2.26057046]
[1752062645262,1.69070692,661.96,661.21,2.26057046]
[1752062645467,1.69070692,661.97,661.2,2.26057046]
[1752062645666,1.69070692,661.97,661.21,2.26057046]
[1752062646266,1.69070692,661.96,661.21,2.26057046]
[1752062646662,1.69070692,661.96,661.22,2.26057046]
[1752062648368,1.69070692,661.95,661.23,2.26057046]
[1752062648668,1.69070692,661.97,661.18,2.26057046]
[1752062649365,1.69070692,661.97,661.19,2.26057046]
[1752062650270,1.69070692,661.96,661.19,2.26057046]
[1752062651071,1.69070692,661.96,661.2,2.26057046]
[1752062652373,1.69070692,661.96,661.19,2.26057046]
[1752062652572,1.69070692,661.95,661.2,2.26057046]
[1752062653368,1.69070692,661.94,661.21,2.26057046]
[1752062653668,1.69070692,661.98,661.13,2.26057046]
[1752062654472,1.69070692,661.97,661.14,2.26057046]
[1752062656072,1.69070692,661.96,661.16,2.26057046]
[1752062658379,1.69070692,661.95,661.16,2.26057046]
[1752062658580,1.69070692,661.96,661.16,2.26057046]
[1752062659277,0.98122578,662.11,661.16,2.26057046]
[1752062659278,1.69070692,661.95,661.16,2.26057046]
[1752062659476,1.69070692,661.95,661.17,2.26057046]
[1752062661577,1.69070692,661.95,660.77,0.2631559]
[1752062661578,1.69070692,661.95,661.18,2.26057046]
[1752062662376,1.69070692,661.89,661.31,2.26057046]
[1752062663183,1.69070692,661.89,661.3,2.26057046]
[1752062663981,1.69070692,661.89,661.31,1.753]
[1752062665982,1.69070692,661.89,661.31,4.01357046]
[1752062667179,1.69070692,661.88,661.31,4.01357046]
[1752062667580,1.69070692,661.89,661.31,4.01357046]
[1752062667780,1.69070692,661.89,661.32,2.26057046]
[1752062668479,1.69070692,661.88,661.32,2.26057046]
[1752062668883,1.69070692,661.89,661.32,2.26057046]
[1752062669284,1.69070692,661.88,661.33,2.26057046]
[1752062669580,1.69070692,661.88,661.32,2.26057046]
[1752062669778,1.69070692,661.88,661.33,2.26057046]
[1752062670381,1.69070692,661.87,661.34,2.26057046]
[1752062671283,1.69070692,661.88,661.32,2.26057046]
[1752062672087,1.69070692,661.87,661.33,2.26057046]
[1752062673088,1.69070692,661.87,661.34,2.26057046]
[1752062673287,1.69070692,661.86,661.34,2.26057046]
[1752062674987,1.69070692,661.85,661.35,2.26057046]
[1752062675285,1.69070692,661.86,661.33,2.26057046]
[1752062675582,1.69070692,661.85,661.34,2.26057046]
[1752062679592,1.69070692,661.85,661.33,2.26057046]
[1752062681090,1.69070692,661.85,661.34,2.26057046]
[1752062681993,1.69070692,661.84,661.35,2.26057046]
[1752062682391,1.69070692,661.85,661.34,2.26057046]
[1752062682797,1.69070692,661.85,661.33,2.26057046]
[1752062683295,1.69070692,661.85,661.34,2.26057046]
[1752062683596,1.69070692,661.85,661.33,2.26057046]
[1752062684095,1.69070692,661.85,661.34,2.26057046]
[1752062684896,1.69070692,661.84,661.35,2.26057046]
[1752062686596,1.69070692,661.89,661.36,1.715]
[1752062686794,1.69070692,661.88,661.36,1.715]
[1752062687198,1.69070692,661.85,661.36,1.715]
[1752062687398,2.26302514,662.02,661.36,1.715]
[1752062687399,1.69070692,661.86,661.36,1.715]
[1752062692396,1.69070692,661.87,661.36,1.715]
[1752062694798,1.69070692,661.85,661.36,1.715]
[1752062695503,1.69070692,661.81,661.36,1.715]
[1752062696004,1.69070692,661.8,661.36,1.715]
[1752062697704,5.65756285,662.45,661.36,1.715]
[1752062697705,1.69070692,661.81,661.36,1.715]
[1752062698200,1.69070692,661.82,661.36,1.715]
[1752062702808,1.69070692,661.83,661.36,1.715]
[1752062705706,1.69070692,661.84,661.36,1.715]
[1752062707411,1.69070692,661.83,661.36,1.715]
[1752062708912,1.69070692,661.84,661.36,1.715]
[1752062712216,1.69070692,661.86,661.36,1.715]
[1752062712816,1.69070692,661.85,661.36,1.715]
[1752062715523,1.69070692,661.86,661.36,1.715]
[1752062718722,1.69070692,661.9,661.36,1.715]
[1752062719327,1.69070692,661.91,661.36,1.715]
[1752062719527,3.39453771,662.26,661.36,1.715]
[1752062719528,1.69070692,661.94,661.36,1.715]
[1752062721129,1.69070692,661.93,661.36,1.715]
[1752062721828,1.69070692,661.89,661.36,1.715]
[1752062722828,3.39453771,662.14,660.77,0.2631559]
[1752062722829,1.69070692,661.94,661.23,2.26057046]
[1752062723027,1.69070692,661.93,661.24,2.26057046]
[1752062724126,1.69070692,661.94,661.24,2.26057046]
[1752062724330,1.69070692,661.93,661.24,2.26057046]
[1752062724729,1.69070692,661.94,661.23,2.26057046]
[1752062724931,1.69070692,661.97,661.16,2.26057046]
[1752062725829,1.69070692,661.97,661.17,2.423]
[1752062727235,0.98280858,662.15,661.17,2.423]
[1752062727236,1.69070692,661.96,661.17,2.423]
[1752062727629,1.69070692,661.93,661.22,2.26057046]
[1752062728433,1.69070692,661.94,661.2,2.26057046]
[1752062728835,0.98280858,662.1,661.17,2.423]
[1752062728836,1.69070692,661.93,661.22,2.26057046]
[1752062729036,1.69070692,661.92,661.24,2.26057046]
[1752062729632,1.69070692,661.92,661.25,2.26057046]
[1752062733636,1.69070692,661.91,661.27,2.26057046]
[1752062734838,1.69070692,661.9,661.29,2.26057046]
[1752062736234,1.69070692,661.89,661.27,2.26057046]
[1752062737135,1.69070692,661.88,661.27,2.26057046]
[1752062737636,1.69070692,661.88,661.28,2.26057046]
[1752062737834,1.69070692,661.88,661.29,2.26057046]
[1752062738335,1.69070692,661.86,661.33,2.26057046]
[1752062738834,1.69070692,661.86,661.34,2.26057046]
[1752062739135,1.69070692,661.88,661.27,2.26057046]
[1752062739435,1.69070692,661.89,661.27,2.26057046]
[1752062739938,1.69070692,661.88,661.28,2.26057046]
[1752062741739,1.69070692,661.88,661.29,2.26057046]
[1752062742336,1.69070692,661.86,661.27,2.26057046]
[1752062743037,1.69070692,661.86,661.28,2.357]
[1752062745039,1.69070692,661.85,661.28,2.357]
[1752062745241,1.69070692,661.87,661.28,2.357]
[1752062745639,1.69070692,661.81,661.28,2.357]
[1752062747239,1.69070692,661.82,661.28,2.357]
[1752062747541,1.69070692,661.83,661.28,2.357]
[1752062748441,1.69070692,661.77,661.28,2.357]
[1752062749445,1.69070692,661.78,661.28,2.357]
[1752062750148,1.69070692,661.79,661.28,2.357]
[1752062752251,1.69070692,661.8,661.28,2.357]
[1752062754151,1.69070692,661.79,661.28,2.357]
[1752062754351,1.69070692,661.77,661.28,2.357]
[1752062756356,1.69070692,661.78,661.28,2.357]
[1752062756954,1.69070692,661.77,661.28,2.357]
[1752062757452,1.69070692,661.76,661.28,2.357]
[1752062762155,1.69070692,661.77,661.28,2.357]
[1752062764159,1.69070692,661.76,661.28,2.357]
[1752062764358,1.69070692,661.77,661.28,2.357]
[1752062764559,1.69070692,661.76,661.28,2.357]
[1752062766861,1.69070692,661.77,661.28,2.357]
[1752062768461,1.69070692,661.79,661.28,2.357]
[1752062768858,1.69070692,661.8,661.28,2.357]
[1752062770264,1.69070692,661.81,661.28,2.357]
[1752062771968,1.69070692,661.8,661.28,2.357]
[1752062772168,1.69070692,661.81,661.28,2.357]
[1752062772868,1.69070692,661.81,661.01,2.26057046]
[1752062776472,1.69070692,661.82,660.98,2.26057046]
[1752062776671,1.69070692,661.82,661.02,2.419]
[1752062778467,1.69070692,661.81,661.02,2.419]
[1752062785177,1.69070692,661.8,661.02,2.419]
[1752062785673,1.69070692,661.8,661.02,4.67957046]
[1752062786177,1.69070692,661.79,661.04,2.26057046]
[1752062786973,1.69070692,661.79,661.05,2.26057046]
[1752062787172,1.69070692,661.82,661.02,2.419]
[1752062787777,1.69070692,661.82,660.97,2.26057046]
[1752062788177,1.69070692,661.82,660.98,2.26057046]
[1752062789179,1.69070692,661.81,660.98,2.26057046]
[1752062790779,1.69070692,661.81,660.99,2.78]
[1752062790979,1.69070692,661.81,660.99,5.04057046]
[1752062791279,1.69070692,661.8,660.99,5.04057046]
[1752062791585,1.69070692,661.81,660.99,5.04057046]
[1752062792182,1.69070692,661.8,661.0,2.26057046]
[1752062792482,1.69070692,661.8,660.99,5.04057046]
[1752062793284,1.69070692,661.8,661.0,2.26057046]
[1752062793487,1.69070692,661.79,661.0,2.26057046]
[1752062795082,1.69070692,661.79,661.01,2.26057046]
[1752062795286,1.69070692,661.78,661.01,2.26057046]
[1752062795787,1.69070692,661.79,661.01,2.26057046]
[1752062796083,1.69070692,661.79,661.02,2.26057046]
[1752062796283,1.69070692,661.78,661.02,2.26057046]
[1752062796984,1.69070692,661.75,661.1,2.26057046]
[1752062797187,1.69070692,661.75,661.11,2.26057046]